[Event "Caplin Hastings Masters 2023-24"]
[Site "Hastings"]
[Date "2024.01.03"]
[Round "7.37"]
[White "Park, Inchan"]
[Black "Byron, Alan M"]
[Result "1/2-1/2"]
[ECO "A49"]
[WhiteElo "1768"]
[BlackElo "2134"]
[Annotator "NA RC"]
[PlyCount "104"]
[EventDate "2023.12.18"]
[EventType "swiss"]
[EventCountry "ENG"]
[SourceTitle "playchess.com"]
[Source "ChessBase"]
[SourceQuality "1"]
[TimeControl "40/6000+30:3000+30"]

1. d4 {[%emt 0:00:36]} Nf6 {[%emt 0:00:24]} 2. Nf3 {[%emt 0:00:06]} d6 {[%emt 0:00:25]} 3. g3 {[%emt 0:00:06]} g6 {[%emt 0:00:14]} 4. Bg2 {[%emt 0:00:05]} Bg7 {[%emt 0:00:08]} 5. O-O {[%emt 0:00:04]} O-O {[%emt 0:00:11]} 6. b3 {[%emt 0:01:03]} Nbd7 {[%emt 0:02:45]} 7. Bb2 {[%emt 0:00:42]} c6 {[%emt 0:01:40]} 8. Re1 {[%emt 0:00:56]} d5 {[%emt 0:01:35]} 9. c4 {[%emt 0:01:38]} a5 {[%emt 0:01:16]} 10. Qc2 {[%emt 0:02:42]} Nb6 {[%emt 0:04:22]} 11. Nbd2 {[%emt 0:10:04]} Bf5 {[%emt 0:01:09]} 12. Qc1 {[%emt 0:00:19]} Ne4 {[%emt 0:03:48]} 13. c5 {[%emt 0:12:55]} Nd7 {[%emt 0:00:44]} 14. Nh4 {[%emt 0:17:35]} Nef6 {[%emt 0:09:33]} 15. f3 {[%emt 0:10:22]} Bh6 {[%emt 0:03:36]} 16. e4 {[%emt 0:01:17]} Be6 {[%emt 0:01:16]} 17. Qc3 {[%emt 0:09:41]} Qc7 {[%emt 0:03:12]} 18. e5 {[%emt 0:09:21]} Ne8 {[%emt 0:01:21]} 19. f4 {[%emt 0:00:54]} Ng7 {[%emt 0:01:15]} 20. Ndf3 {[%emt 0:06:34]} f6 {[%emt 0:03:59]} 21. Bc1 {[%emt 0:00:40]} f5 {[%emt 0:04:50]} 22. a3 {[%emt 0:03:24]} b6 {[%emt 0:04:18]} 23. Be3 {[%emt 0:03:15]} Bf7 {[%emt 0:02:56]} 24. Rec1 {[%emt 0:01:20]} Rfc8 {[%emt 0:00:36]} 25. b4 {[%emt 0:02:47]} Ne6 {[%emt 0:00:23]} 26. Bf1 {[%emt 0:00:52]} b5 {[%emt 0:08:15]} 27. Ng2 {[%emt 0:00:12]} Ra7 {[%emt 0:03:01]} 28. Nge1 {[%emt 0:00:37]} Rca8 {[%emt 0:00:13]} 29. Nc2 {[%emt 0:00:13]} Bg7 {[%emt 0:01:23]} 30. Be2 {[%emt 0:00:41]} h6 {[%emt 0:01:37]} 31. h4 {[%emt 0:00:12]} Ndf8 {[%emt 0:02:34]} 32. Kf2 {[%emt 0:00:57]} Nh7 {[%emt 0:00:14]} 33. Bd3 {[%emt 0:00:20]} Nd8 {[%emt 0:02:46]} 34. Rg1 {[%emt 0:00:29]} Qd7 {[%emt 0:02:48]} 35. Nh2 {[%emt 0:00:47]} Be6 {[%emt 0:00:46]} 36. Be2 {[%emt 0:00:10]} Kh8 {[%emt 0:02:41]} 37. Bf3 {[%emt 0:00:20]} Nf7 {[%emt 0:01:22]} 38. Be2 {[%emt 0:00:04]} axb4 {[%emt 0:04:08]} 39. axb4 {[%emt 0:00:10]} Ra4 {[%emt 0:00:14]} 40. Bd3 {[%emt 0:01:54]} Nf8 {[%emt 0:03:04]} 41. Rxa4 {[%emt 0:52:12]} Rxa4 {[%emt 0:51:44]} 42. Ra1 {[%emt 0:00:10]} Qa7 {[%emt 0:00:34]} 43. Rxa4 {[%emt 0:00:14]} Qxa4 {[%emt 0:00:10]} 44. Qa3 {[%emt 0:00:07]} Qxa3 {[%emt 0:00:48]} 45. Nxa3 {[%emt 0:00:07]} Bd7 {[%emt 0:00:08]} 46. Nf3 {[%emt 0:00:11]} Nd8 {[%emt 0:02:31]} 47. Nc2 {[%emt 0:05:25]} Kg8 {[%emt 0:00:23]} 48. Nce1 {[%emt 0:04:16]} Kf7 {[%emt 0:01:17]} 49. Ng1 {[%emt 0:03:12]} Nh7 {[%emt 0:00:17]} 50. Nef3 {[%emt 0:00:40]} Bf8 {[%emt 0:00:52]} 51. Nh3 {[%emt 0:00:23]} Kg7 {[%emt 0:00:34]} 52. Kg2 {[%emt 0:00:31]} Ne6 {[%emt 0:08:13]} 1/2-1/2

[Event "Caplin Hastings Masters 2023-24"]
[Site "Hastings"]
[Date "2024.01.03"]
[Round "7.38"]
[White "Wilson, Matthew R"]
[Black "Walker, Martin G"]
[Result "0-1"]
[ECO "B04"]
[WhiteElo "1771"]
[BlackElo "2090"]
[Annotator "NA RC"]
[PlyCount "94"]
[EventDate "2023.12.18"]
[EventType "swiss"]
[EventCountry "ENG"]
[SourceTitle "playchess.com"]
[Source "ChessBase"]
[SourceQuality "1"]
[TimeControl "40/6000+30:3000+30"]

1. e4 {[%emt 0:00:01]} Nf6 {[%emt 0:00:11]} 2. e5 {[%emt 0:00:07]} Nd5 {[%emt 0:00:03]} 3. d4 {[%emt 0:00:08]} d6 {[%emt 0:00:06]} 4. c4 {[%emt 0:00:06]} Nb6 {[%emt 0:00:04]} 5. exd6 {[%emt 0:00:07]} cxd6 {[%emt 0:00:04]} 6. Nf3 {[%emt 0:00:09]} g6 {[%emt 0:00:06]} 7. h3 {[%emt 0:00:15]} Bg7 {[%emt 0:00:06]} 8. Be2 {[%emt 0:00:42]} O-O {[%emt 0:00:11]} 9. Nc3 {[%emt 0:02:12]} Nc6 {[%emt 0:01:21]} 10. O-O {[%emt 0:00:13]} d5 {[%emt 0:01:54]} 11. c5 {[%emt 0:04:45]} Nc4 {[%emt 0:00:05]} 12. b3 {[%emt 0:04:20]} N4a5 {[%emt 0:00:08]} 13. Bf4 {[%emt 0:01:25]} Bf5 {[%emt 0:07:43]} 14. Qd2 {[%emt 0:06:19]} Re8 {[%emt 0:03:38]} 15. Bb5 {[%emt 0:05:15]} a6 {[%emt 0:10:31]} 16. Ba4 {[%emt 0:00:57]} f6 {[%emt 0:08:37]} 17. Rfe1 {[%emt 0:11:36]} Qd7 {[%emt 0:20:17]} 18. Rad1 {[%emt 0:08:14]} g5 {[%emt 0:03:20]} 19. Bg3 {[%emt 0:08:10]} g4 {[%emt 0:00:22]} 20. hxg4 {[%emt 0:03:15]} Bxg4 {[%emt 0:00:10]} 21. Ne2 {[%emt 0:06:05]} Rad8 {[%emt 0:09:06]} 22. Nh2 {[%emt 0:11:58]} Bh5 {[%emt 0:01:59]} 23. Qf4 {[%emt 0:02:32]} Kh8 {[%emt 0:05:57]} 24. Qh4 {[%emt 0:02:04]} Bg6 {[%emt 0:06:37]} 25. Nf4 {[%emt 0:01:16]} Bf5 {[%emt 0:00:09]} 26. f3 {[%emt 0:06:43]} e6 {[%emt 0:06:08]} 27. Nh5 {[%emt 0:02:26]} Qf7 {[%emt 0:00:14]} 28. Ng4 {[%emt 0:02:30]} Rg8 {[%emt 0:05:18]} 29. Bf4 {[%emt 0:13:49]} Bxg4 {[%emt 0:06:55]} 30. fxg4 {[%emt 0:01:44]} Rde8 {[%emt 0:06:36]} 31. Bd6 {[%emt 0:01:31]} Rc8 {[%emt 0:03:46]} 32. a3 {[%emt 0:01:47]} Ne7 {[%emt 0:01:45]} 33. b4 {[%emt 0:00:41]} Ng6 {[%emt 0:00:14]} 34. Qf2 {[%emt 0:00:28]} Nc4 {[%emt 0:00:06]} 35. Bh2 {[%emt 0:01:44]} Nxa3 {[%emt 0:01:28]} 36. g5 {[%emt 0:00:48]} f5 {[%emt 0:00:28]} 37. Qe3 {[%emt 0:00:46]} Nc4 {[%emt 0:00:14]} 38. Qxe6 {[%emt 0:00:16]} Qxe6 {[%emt 0:00:09]} 39. Rxe6 {[%emt 0:00:04]} Nb2 {[%emt 0:00:07]} 40. Nxg7 {[%emt 0:00:46]} Nxd1 {[%emt 0:02:41]} 41. Nxf5 {[%emt 0:07:24]} Nc3 {[%emt 0:00:09]} 42. Bc2 {[%emt 0:04:56]} Rce8 {[%emt 0:00:45]} 43. Re3 {[%emt 0:05:53]} Rxe3 {[%emt 0:18:03]} 44. Nxe3 {[%emt 0:00:03]} Rf8 {[%emt 0:00:10]} 45. Nf5 {[%emt 0:04:50]} Re8 {[%emt 0:04:15]} 46. Kf1 {[%emt 0:00:31]} Re2 {[%emt 0:03:44]} 47. Bd3 {[%emt 0:02:20]} Rd2 {[%emt 0:00:25]} 0-1

[Event "Caplin Hastings Masters 2023-24"]
[Site "Hastings"]
[Date "2024.01.03"]
[Round "7.39"]
[White "Rastogi, Nayan Keats"]
[Black "Binks, Michael"]
[Result "1/2-1/2"]
[ECO "B12"]
[WhiteElo "1662"]
[BlackElo "2035"]
[Annotator "NA RC"]
[PlyCount "39"]
[EventDate "2023.12.18"]
[EventType "swiss"]
[EventCountry "ENG"]
[SourceTitle "playchess.com"]
[Source "ChessBase"]
[SourceQuality "1"]
[TimeControl "40/6000+30:3000+30"]

1. e4 {[%emt 0:00:02]} c6 {[%emt 0:02:46]} 2. d4 {[%emt 0:00:06]} d5 {[%emt 0:00:07]} 3. e5 {[%emt 0:00:05]} Bf5 {[%emt 0:00:08]} 4. Nf3 {[%emt 0:00:08]} e6 {[%emt 0:00:59]} 5. c3 {[%emt 0:00:16]} c5 {[%emt 0:00:21]} 6. Be3 {[%emt 0:00:43]} cxd4 {[%emt 0:00:28]} 7. Nxd4 {[%emt 0:00:40]} Bxb1 {[%emt 0:07:02]} 8. Rxb1 {[%emt 0:03:21]} a6 {[%emt 0:00:45]} 9. Bd3 {[%emt 0:03:45]} Ne7 {[%emt 0:08:14]} 10. O-O {[%emt 0:04:38]} Nbc6 {[%emt 0:01:35]} 11. f4 {[%emt 0:06:36]} Nxd4 {[%emt 0:00:35]} 12. cxd4 {[%emt 0:01:17]} g6 {[%emt 0:11:31]} 13. Qb3 {[%emt 0:04:38]} Qd7 {[%emt 0:00:33]} 14. Rbc1 {[%emt 0:01:27]} Nc6 {[%emt 0:06:37]} 15. a3 {[%emt 0:02:18]} Be7 {[%emt 0:00:16]} 16. Qd1 {[%emt 0:04:01]} f5 {[%emt 0:00:25]} 17. Qe1 {[%emt 0:14:12]} O-O {[%emt 0:09:01]} 18. h3 {[%emt 0:01:25]} h5 {[%emt 0:09:06]} 19. Be2 {[%emt 0:06:11]} Kf7 {[%emt 0:00:24]} 20. Bf2 {[%emt 0:01:28]} 1/2-1/2

[Event "Caplin Hastings Masters 2023-24"]
[Site "Hastings"]
[Date "2024.01.03"]
[Round "7.40"]
[White "Byrn, Carsten"]
[Black "Batchelor, Paul A"]
[Result "1-0"]
[ECO "D85"]
[WhiteElo "1823"]
[BlackElo "1937"]
[Annotator "NA"]
[PlyCount "139"]
[EventDate "2023.12.18"]
[EventType "swiss"]
[EventCountry "ENG"]
[SourceTitle "playchess.com"]
[Source "ChessBase"]
[SourceQuality "1"]
[TimeControl "40/6000+30:3000+30"]

1. d4 {[%emt 0:00:11]} Nf6 {[%emt 0:01:19]} 2. c4 {[%emt 0:00:03]} g6 {[%emt 0:00:20]} 3. Nc3 {[%emt 0:00:25]} d5 {[%emt 0:00:16]} 4. Nf3 {[%emt 0:00:29]} Bg7 {[%emt 0:00:12]} 5. cxd5 {[%emt 0:00:25]} Nxd5 {[%emt 0:02:07]} 6. e4 {[%emt 0:00:14]} Nxc3 {[%emt 0:00:24]} 7. bxc3 {[%emt 0:00:12]} c5 {[%emt 0:00:59]} 8. h3 {[%emt 0:04:31]} O-O {[%emt 0:00:32]} 9. Be2 {[%emt 0:00:17]} Nc6 {[%emt 0:01:28]} 10. Be3 {[%emt 0:00:31]} cxd4 {[%emt 0:05:41]} 11. cxd4 {[%emt 0:00:11]} e6 {[%emt 0:02:02]} 12. O-O {[%emt 0:00:31]} b6 {[%emt 0:00:27]} 13. Rc1 {[%emt 0:00:48]} Bb7 {[%emt 0:00:33]} 14. Qd2 {[%emt 0:06:10]} Rc8 {[%emt 0:07:21]} 15. Rfd1 {[%emt 0:00:39]} Na5 {[%emt 0:10:15]} 16. e5 {[%emt 0:09:03]} Re8 {[%emt 0:08:11]} 17. Bb5 {[%emt 0:05:23]} Rf8 {[%emt 0:13:34]} 18. Qe2 {[%emt 0:04:57]} h6 {[%emt 0:06:29]} 19. Ba6 {[%emt 0:01:28]} Qe7 {[%emt 0:00:40]} 20. Bxb7 {[%emt 0:00:48]} Qxb7 {[%emt 0:00:12]} 21. Bd2 {[%emt 0:02:10]} Nc6 {[%emt 0:02:05]} 22. Bc3 {[%emt 0:01:21]} Rfe8 {[%emt 0:06:38]} 23. Nd2 {[%emt 0:01:07]} Bf8 {[%emt 0:03:59]} 24. Ne4 {[%emt 0:00:23]} Be7 {[%emt 0:00:04]} 25. Qf3 {[%emt 0:09:03]} Red8 {[%emt 0:10:59]} 26. Bb2 {[%emt 0:02:47]} Na5 {[%emt 0:10:30]} 27. Bc3 {[%emt 0:00:46]} Nc6 {[%emt 0:03:37]} 28. h4 {[%emt 0:06:18]} Bf8 {[%emt 0:05:12]} 29. h5 {[%emt 0:01:27]} Be7 {[%emt 0:01:24]} 30. hxg6 {[%emt 0:00:43]} fxg6 {[%emt 0:00:06]} 31. Qg4 {[%emt 0:02:44]} Kg7 {[%emt 0:00:28]} 32. Qxe6 {[%emt 0:05:05]} Nxd4 {[%emt 0:02:19]} 33. Rxd4 {[%emt 0:02:36]} Rxd4 {[%emt 0:01:19]} 34. Nd6 {[%emt 0:01:16]} Rxc3 {[%emt 0:02:43]} 35. Qf7+ {[%emt 0:01:29]} Kh8 {[%emt 0:00:07]} 36. Rxc3 {[%emt 0:00:51]} Rd1+ {[%emt 0:00:31]} 37. Kh2 {[%emt 0:00:31]} Rxd6 {[%emt 0:00:11]} 38. Qe8+ {[%emt 0:02:03]} Kh7 {[%emt 0:00:09]} 39. Rc8 {[%emt 0:03:39]} Bd8 {[%emt 0:00:30]} 40. Rxd8 {[%emt 0:02:30]} Rxd8 {[%emt 0:00:03]} 41. Qxd8 {[%emt 0:00:49]} Qf7 {[%emt 0:00:14]} 42. Qd4 {[%emt 0:55:29]} Qe6 {[%emt 0:50:29]} 43. Qd6 {[%emt 0:02:40]} Qxa2 {[%emt 0:00:29]} 44. Qe7+ {[%emt 0:00:23]} Kg8 {[%emt 0:00:42]} 45. Qd8+ {[%emt 0:04:33]} Kg7 {[%emt 0:00:06]} 46. Qf6+ {[%emt 0:00:20]} Kh7 {[%emt 0:00:14]} 47. e6 {[%emt 0:00:13]} Qd5 {[%emt 0:04:00]} 48. Qf7+ {[%emt 0:02:41]} Kh8 {[%emt 0:00:18]} 49. Qxg6 {[%emt 0:00:27]} Qe5+ {[%emt 0:00:33]} 50. g3 {[%emt 0:00:44]} Qg7 {[%emt 0:00:56]} 51. Qf5 {[%emt 0:02:48]} Qe7 {[%emt 0:00:00]} 52. f4 {[%emt 0:00:00]} a5 {[%emt 0:00:00]} 53. Qe5+ {[%emt 0:00:00]} Kg8 {[%emt 0:00:00]} 54. f5 {[%emt 0:00:00]} Qc5 {[%emt 0:00:00]} 55. Qb8+ {[%emt 0:01:52]} Kg7 {[%emt 0:01:54]} 56. Qf4 {[%emt 0:00:00]} Qe7 {[%emt 0:00:00]} 57. Qd4+ {[%emt 0:00:00]} Kg8 {[%emt 0:00:00]} 58. Qxb6 {[%emt 0:00:00]} a4 {[%emt 0:00:00]} 59. Qb8+ {[%emt 0:00:00]} Qf8 {[%emt 0:00:00]} 60. Qf4 {[%emt 0:00:00]} a3 {[%emt 0:00:00]} 61. f6 {[%emt 0:00:00]} Qc5 {[%emt 0:00:00]} 62. Qb8+ {[%emt 0:00:00]} Qf8 {[%emt 0:00:00]} 63. f7+ {[%emt 0:00:00]} Kg7 {[%emt 0:00:00]} 64. Qe5+ {[%emt 0:00:00]} Kh7 {[%emt 0:00:00]} 65. e7 {[%emt 0:00:00]} Qxf7 {[%emt 0:00:00]} 66. e8=Q {[%emt 0:00:00]} Qf2+ {[%emt 0:00:00]} 67. Kh3 {[%emt 0:00:17]} Qf1+ {[%emt 0:00:15]} 68. Kg4 {[%emt 0:00:16]} Qd1+ {[%emt 0:00:34]} 69. Qe2 {[%emt 0:00:00]} Qd4+ {[%emt 0:00:00]} 70. Q2e4+ {[%emt 0:00:00]} 1-0

[Event "Caplin Hastings Masters 2023-24"]
[Site "Hastings"]
[Date "2024.01.03"]
[Round "7.41"]
[White "Fryer, David W"]
[Black "Seo, Juwon"]
[Result "0-1"]
[ECO "B47"]
[WhiteElo "1914"]
[BlackElo "1405"]
[Annotator "NA RC"]
[PlyCount "76"]
[EventDate "2023.12.18"]
[EventType "swiss"]
[EventCountry "ENG"]
[SourceTitle "playchess.com"]
[Source "ChessBase"]
[SourceQuality "1"]
[TimeControl "40/6000+30:3000+30"]

1. e4 {[%emt 0:00:03]} c5 {[%emt 0:00:48]} 2. Nf3 {[%emt 0:00:06]} e6 {[%emt 0:00:49]} 3. d4 {[%emt 0:00:13]} cxd4 {[%emt 0:01:21]} 4. Nxd4 {[%emt 0:00:19]} Nc6 {[%emt 0:01:09]} 5. Be3 {[%emt 0:00:32]} Qc7 {[%emt 0:00:08]} 6. Nb5 {[%emt 0:02:24]} Qb8 {[%emt 0:00:10]} 7. N1c3 {[%emt 0:00:23]} a6 {[%emt 0:00:31]} 8. Bb6 {[%emt 0:01:32]} axb5 {[%emt 0:00:31]} 9. Nxb5 {[%emt 0:00:22]} Bb4+ {[%emt 0:07:43]} 10. c3 {[%emt 0:00:18]} Ba5 {[%emt 0:00:14]} 11. Nc7+ {[%emt 0:00:27]} Qxc7 {[%emt 0:00:09]} 12. Bxc7 {[%emt 0:00:11]} Bxc7 {[%emt 0:00:10]} 13. Qg4 {[%emt 0:00:30]} Kf8 {[%emt 0:03:20]} 14. f4 {[%emt 0:01:41]} Nf6 {[%emt 0:04:45]} 15. Qf3 {[%emt 0:00:19]} d5 {[%emt 0:05:41]} 16. e5 {[%emt 0:02:41]} Ne4 {[%emt 0:01:20]} 17. Bd3 {[%emt 0:08:38]} Nc5 {[%emt 0:07:20]} 18. Bc2 {[%emt 0:00:51]} b6 {[%emt 0:07:02]} 19. O-O {[%emt 0:02:34]} g6 {[%emt 0:02:49]} 20. a3 {[%emt 0:09:18]} Ba6 {[%emt 0:01:20]} 21. Rfe1 {[%emt 0:04:21]} Kg7 {[%emt 0:02:37]} 22. Rab1 {[%emt 0:04:35]} Bb7 {[%emt 0:03:26]} 23. Qh3 {[%emt 0:03:51]} Rhd8 {[%emt 0:02:00]} 24. g4 {[%emt 0:03:06]} d4 {[%emt 0:00:32]} 25. g5 {[%emt 0:01:15]} dxc3 {[%emt 0:01:07]} 26. Re3 {[%emt 0:10:24]} Rh8 {[%emt 0:08:08]} 27. b4 {[%emt 0:07:49]} Na4 {[%emt 0:02:48]} 28. Qh6+ {[%emt 0:02:20]} Kg8 {[%emt 0:01:12]} 29. Rd1 {[%emt 0:00:35]} b5 {[%emt 0:03:19]} 30. Red3 {[%emt 0:02:13]} Bb6+ {[%emt 0:00:49]} 31. Kf1 {[%emt 0:00:25]} Nb2 {[%emt 0:02:00]} 32. Rd7 {[%emt 0:03:32]} Nxd1 {[%emt 0:00:35]} 33. Bb3 {[%emt 0:01:32]} Ne3+ {[%emt 0:01:15]} 34. Ke1 {[%emt 0:00:25]} Nf5 {[%emt 0:01:00]} 35. Qh3 {[%emt 0:00:46]} Bc8 {[%emt 0:00:39]} 36. Rd3 {[%emt 0:00:51]} Bd4 {[%emt 0:01:08]} 37. Qf3 {[%emt 0:00:27]} Bb7 {[%emt 0:00:18]} 38. Qe2 {[%emt 0:04:08]} Rxa3 {[%emt 0:00:53]} 0-1

[Event "Caplin Hastings Masters 2023-24"]
[Site "Hastings"]
[Date "2024.01.03"]
[Round "7.42"]
[White "Ortiz Sanchez, Luis"]
[Black "Alcindor, Samuel"]
[Result "1/2-1/2"]
[ECO "B11"]
[WhiteElo "1863"]
[BlackElo "1714"]
[Annotator "NA RC"]
[PlyCount "98"]
[EventDate "2023.12.18"]
[EventType "swiss"]
[EventCountry "ENG"]
[SourceTitle "playchess.com"]
[Source "ChessBase"]
[SourceQuality "1"]
[TimeControl "40/6000+30:3000+30"]

1. e4 {[%emt 0:01:29]} c6 {[%emt 0:00:08]} 2. Nf3 {[%emt 0:00:36]} d5 {[%emt 0:00:10]} 3. Nc3 {[%emt 0:00:08]} Bg4 {[%emt 0:00:10]} 4. h3 {[%emt 0:00:11]} Bxf3 {[%emt 0:00:07]} 5. Qxf3 {[%emt 0:00:02]} e6 {[%emt 0:00:20]} 6. d4 {[%emt 0:03:26]} dxe4 {[%emt 0:05:19]} 7. Qxe4 {[%emt 0:01:12]} Nf6 {[%emt 0:00:06]} 8. Qd3 {[%emt 0:02:09]} Nbd7 {[%emt 0:00:27]} 9. Be2 {[%emt 0:01:32]} Bd6 {[%emt 0:01:23]} 10. Bg5 {[%emt 0:01:02]} Qa5 {[%emt 0:02:10]} 11. Bd2 {[%emt 0:00:33]} Qb6 {[%emt 0:02:08]} 12. O-O {[%emt 0:01:46]} O-O {[%emt 0:00:54]} 13. b3 {[%emt 0:11:09]} Rac8 {[%emt 0:01:37]} 14. Na4 {[%emt 0:01:50]} Qc7 {[%emt 0:00:40]} 15. c4 {[%emt 0:00:45]} c5 {[%emt 0:00:49]} 16. Rad1 {[%emt 0:02:35]} Rfd8 {[%emt 0:06:16]} 17. Nc3 {[%emt 0:11:08]} a6 {[%emt 0:01:27]} 18. dxc5 {[%emt 0:01:46]} Nxc5 {[%emt 0:01:04]} 19. Qf3 {[%emt 0:01:52]} Be5 {[%emt 0:10:13]} 20. b4 {[%emt 0:07:43]} Ncd7 {[%emt 0:01:17]} 21. Ne4 {[%emt 0:04:13]} Nb6 {[%emt 0:11:08]} 22. Bg5 {[%emt 0:09:59]} Rxd1 {[%emt 0:04:22]} 23. Rxd1 {[%emt 0:00:47]} Nxe4 {[%emt 0:00:08]} 24. Qxe4 {[%emt 0:00:12]} f6 {[%emt 0:00:13]} 25. f4 {[%emt 0:03:42]} fxg5 {[%emt 0:04:51]} 26. fxe5 {[%emt 0:00:09]} Nxc4 {[%emt 0:03:08]} 27. Bxc4 {[%emt 0:02:14]} Qxc4 {[%emt 0:01:01]} 28. Rd8+ {[%emt 0:03:58]} Kf7 {[%emt 0:00:32]} 29. Qxb7+ {[%emt 0:00:18]} Rc7 {[%emt 0:00:24]} 30. Rd7+ {[%emt 0:00:53]} Rxd7 {[%emt 0:00:33]} 31. Qxd7+ {[%emt 0:00:14]} Kg6 {[%emt 0:00:36]} 32. Qd2 {[%emt 0:04:52]} h6 {[%emt 0:01:12]} 33. Qb2 {[%emt 0:00:13]} Kf5 {[%emt 0:01:38]} 34. a4 {[%emt 0:00:43]} Qc6 {[%emt 0:02:56]} 35. b5 {[%emt 0:01:21]} axb5 {[%emt 0:01:15]} 36. axb5 {[%emt 0:02:44]} Qb6+ {[%emt 0:04:27]} 37. Kf1 {[%emt 0:02:02]} Ke4 {[%emt 0:01:24]} 38. Qe2+ {[%emt 0:01:23]} Kd5 {[%emt 0:00:52]} 39. Ke1 {[%emt 0:12:11]} Kc5 {[%emt 0:01:06]} 40. Qd3 {[%emt 0:00:40]} Kb4 {[%emt 0:10:18]} 41. g4 {[%emt 0:18:58]} Ka5 {[%emt 0:11:52]} 42. Qb3 {[%emt 0:01:18]} Qg1+ {[%emt 0:00:26]} 43. Ke2 {[%emt 0:00:17]} Qh2+ {[%emt 0:00:11]} 44. Kf1 {[%emt 0:00:52]} Qf4+ {[%emt 0:02:08]} 45. Kg2 {[%emt 0:00:59]} Qe4+ {[%emt 0:00:55]} 46. Kf1 {[%emt 0:00:40]} Qxe5 {[%emt 0:04:14]} 47. b6 {[%emt 0:00:41]} Qf4+ {[%emt 0:00:35]} 48. Kg2 {[%emt 0:01:41]} Qe4+ {[%emt 0:03:04]} 49. Kg3 {[%emt 0:01:10]} Qf4+ {[%emt 0:03:45]} 1/2-1/2

[Event "Caplin Hastings Masters 2023-24"]
[Site "Hastings"]
[Date "2024.01.03"]
[Round "7.43"]
[White "Keely, Leo A"]
[Black "Blades, Kit"]
[Result "1-0"]
[ECO "B90"]
[WhiteElo "1908"]
[BlackElo "1771"]
[Annotator "NA"]
[PlyCount "39"]
[EventDate "2023.12.18"]
[EventType "swiss"]
[EventCountry "ENG"]
[SourceTitle "playchess.com"]
[Source "ChessBase"]
[SourceQuality "1"]
[TimeControl "40/6000+30:3000+30"]

1. e4 {[%emt 0:00:07]} c5 {[%emt 0:00:13]} 2. Nf3 {[%emt 0:00:50]} d6 {[%emt 0:00:41]} 3. d4 {[%emt 0:00:09]} cxd4 {[%emt 0:00:14]} 4. Nxd4 {[%emt 0:00:10]} Nf6 {[%emt 0:00:12]} 5. Nc3 {[%emt 0:00:09]} a6 {[%emt 0:00:04]} 6. Bd3 {[%emt 0:02:08]} e5 {[%emt 0:00:15]} 7. Nb3 {[%emt 0:06:13]} Be7 {[%emt 0:02:01]} 8. O-O {[%emt 0:04:28]} O-O {[%emt 0:00:41]} 9. h3 {[%emt 0:03:39]} Nbd7 {[%emt 0:03:48]} 10. f4 {[%emt 0:06:25]} b5 {[%emt 0:04:00]} 11. fxe5 {[%emt 0:07:31]} dxe5 {[%emt 0:00:50]} 12. Be3 {[%emt 0:04:11]} Bb7 {[%emt 0:00:45]} 13. Nd5 {[%emt 0:02:56]} Nxd5 {[%emt 0:01:59]} 14. exd5 {[%emt 0:00:08]} Nf6 {[%emt 0:00:14]} 15. Bg5 {[%emt 0:02:12]} Nxd5 {[%emt 0:02:16]} 16. Bxe7 {[%emt 0:03:06]} Qxe7 {[%emt 0:00:32]} 17. Be4 {[%emt 0:00:52]} Rad8 {[%emt 0:05:54]} 18. Qe2 {[%emt 0:02:54]} Nf4 {[%emt 0:12:22]} 19. Rxf4 {[%emt 0:01:59]} Bxe4 {[%emt 0:01:58]} 20. Rxe4 {[%emt 0:01:51]} 1-0

[Event "Caplin Hastings Masters 2023-24"]
[Site "Hastings"]
[Date "2024.01.03"]
[Round "7.44"]
[White "Norinkeviciute, Rasa"]
[Black "Metcalfe, Charlie P"]
[Result "0-1"]
[ECO "A29"]
[WhiteElo "1905"]
[BlackElo "1760"]
[Annotator "NA RC"]
[PlyCount "120"]
[EventDate "2023.12.18"]
[EventType "swiss"]
[EventCountry "ENG"]
[SourceTitle "playchess.com"]
[Source "ChessBase"]
[SourceQuality "1"]
[TimeControl "40/6000+30:3000+30"]

1. c4 {[%emt 0:00:53]} e5 {[%emt 0:00:01]} 2. g3 {[%emt 0:00:47]} Nf6 {[%emt 0:00:02]} 3. Bg2 {[%emt 0:00:06]} d5 {[%emt 0:00:01]} 4. cxd5 {[%emt 0:00:06]} Nxd5 {[%emt 0:00:02]} 5. Nc3 {[%emt 0:00:07]} Nb6 {[%emt 0:00:01]} 6. Nf3 {[%emt 0:00:48]} Nc6 {[%emt 0:00:01]} 7. d3 {[%emt 0:01:02]} Be7 {[%emt 0:00:24]} 8. a3 {[%emt 0:00:52]} O-O {[%emt 0:04:21]} 9. Be3 {[%emt 0:02:13]} Be6 {[%emt 0:00:49]} 10. Na4 {[%emt 0:03:34]} Nxa4 {[%emt 0:05:00]} 11. Qxa4 {[%emt 0:00:33]} a6 {[%emt 0:00:15]} 12. Rc1 {[%emt 0:02:34]} Bf6 {[%emt 0:05:12]} 13. O-O {[%emt 0:09:25]} Rc8 {[%emt 0:08:25]} 14. Nd2 {[%emt 0:07:55]} Bd5 {[%emt 0:04:28]} 15. Ne4 {[%emt 0:02:10]} Be7 {[%emt 0:02:31]} 16. Nc5 {[%emt 0:10:22]} Bxg2 {[%emt 0:04:09]} 17. Kxg2 {[%emt 0:03:15]} Nd4 {[%emt 0:02:27]} 18. Bxd4 {[%emt 0:10:39]} exd4 {[%emt 0:00:07]} 19. Qc4 {[%emt 0:03:43]} Bxc5 {[%emt 0:03:39]} 20. Qxc5 {[%emt 0:00:18]} Qd7 {[%emt 0:17:07]} 21. Rc4 {[%emt 0:03:49]} Rfd8 {[%emt 0:00:10]} 22. Rfc1 {[%emt 0:06:46]} c6 {[%emt 0:17:20]} 23. b4 {[%emt 0:09:14]} Qd5+ {[%emt 0:09:18]} 24. Qxd5 {[%emt 0:04:37]} Rxd5 {[%emt 0:00:02]} 25. Rc5 {[%emt 0:00:39]} Rd7 {[%emt 0:05:32]} 26. Re5 {[%emt 0:04:00]} f6 {[%emt 0:00:30]} 27. Re4 {[%emt 0:01:24]} Kf7 {[%emt 0:00:17]} 28. Rc4 {[%emt 0:00:54]} Rcd8 {[%emt 0:00:11]} 29. f4 {[%emt 0:02:05]} Rd5 {[%emt 0:01:42]} 30. f5 {[%emt 0:02:59]} Rxf5 {[%emt 0:03:51]} 31. Rexd4 {[%emt 0:01:18]} Rxd4 {[%emt 0:05:39]} 32. Rxd4 {[%emt 0:00:09]} Ke6 {[%emt 0:04:14]} 33. e4 {[%emt 0:01:56]} Rb5 {[%emt 0:02:51]} 34. Kf3 {[%emt 0:06:55]} f5 {[%emt 0:03:05]} 35. h4 {[%emt 0:02:00]} a5 {[%emt 0:02:06]} 36. Rc4 {[%emt 0:02:29]} Kd6 {[%emt 0:01:49]} 37. Kf4 {[%emt 0:02:40]} fxe4 {[%emt 0:00:39]} 38. dxe4 {[%emt 0:02:14]} b6 {[%emt 0:00:21]} 39. g4 {[%emt 0:01:41]} c5 {[%emt 0:00:42]} 40. e5+ {[%emt 0:00:42]} Kd5 {[%emt 0:00:34]} 41. Re4 {[%emt 0:01:07]} Ke6 {[%emt 0:04:09]} 42. bxa5 {[%emt 0:00:22]} Rxa5 {[%emt 0:03:55]} 43. a4 {[%emt 0:00:53]} Ra8 {[%emt 0:10:28]} 44. Rc4 {[%emt 0:09:56]} Kd5 {[%emt 0:01:46]} 45. Rc1 {[%emt 0:07:29]} Rxa4+ {[%emt 0:08:30]} 46. Kf5 {[%emt 0:00:10]} g6+ {[%emt 0:00:03]} 47. Kf6 {[%emt 0:01:51]} Rf4+ {[%emt 0:01:01]} 48. Kg5 {[%emt 0:01:07]} Kxe5 {[%emt 0:00:08]} 49. h5 {[%emt 0:01:33]} Rd4 {[%emt 0:05:19]} 50. Rb1 {[%emt 0:06:29]} gxh5 {[%emt 0:05:18]} 51. gxh5 {[%emt 0:06:13]} Rd6 {[%emt 0:00:54]} 52. Re1+ {[%emt 0:00:29]} Kd5 {[%emt 0:00:08]} 53. h6 {[%emt 0:01:13]} c4 {[%emt 0:05:52]} 54. Re7 {[%emt 0:00:14]} c3 {[%emt 0:00:07]} 55. Rxh7 {[%emt 0:02:36]} c2 {[%emt 0:01:05]} 56. Rc7 {[%emt 0:01:05]} Rc6 {[%emt 0:00:06]} 57. Rxc6 {[%emt 0:00:39]} Kxc6 {[%emt 0:00:02]} 58. h7 {[%emt 0:00:04]} c1=Q+ {[%emt 0:00:04]} 59. Kg6 {[%emt 0:00:08]} Qc2+ {[%emt 0:00:11]} 60. Kg7 {[%emt 0:00:06]} Qxh7+ {[%emt 0:00:12]} 0-1